bitfinex/quotes_ETHUSD_20240729
["timestamp","ask_amount","ask_price","bid_price","bid_amount"]
[1722280837071,3.01277,3319.2,3318.6,3.01331]
[1722280837485,2.2764,3319.0,3318.6,3.01331]
[1722280837976,0.05516839,3318.9,3318.4,3.01342]
[1722280838471,0.05516839,3318.9,3318.3,3.01355]
[1722280838472,0.05516839,3318.9,3318.3,3.01357]
[1722280838675,0.05516839,3318.9,3318.1,3.01373]
[1722280838676,3.01314,3318.8,3318.1,3.0137]
[1722280838891,3.0683446,3318.7,3318.1,3.0137]
[1722280839183,3.0683446,3318.7,3317.9,3.01388]
[1722280839565,3.0683446,3318.7,3318.0,3.01379]
[1722280840074,3.0683446,3318.7,3318.1,3.01374]
[1722280840769,0.0551046,3318.7,3318.2,3.01368]
[1722280841138,3.24619684,3318.9,3318.2,3.01368]
[1722280841348,0.0551145,3318.6,3318.2,3.01368]
[1722280841687,2.2764,3319.0,3318.3,0.06026733]
[1722280841995,5.28936,3319.0,3318.4,3.0135]
[1722280842148,0.05499115,3318.9,3318.4,3.0135]
[1722280842352,3.06809115,3318.9,3318.3,3.01356]
[1722280843166,3.06809115,3318.9,3318.4,3.01342]
[1722280843167,0.05499115,3318.9,3318.4,3.01342]
[1722280843495,0.05499115,3318.9,3318.8,3.01313]
[1722280843789,2.3487,3319.4,3318.8,3.01313]
[1722280844084,2.3487,3319.4,3319.0,3.01295]
[1722280845117,2.3487,3319.4,3318.8,3.01304]
[1722280845587,2.3487,3319.4,3319.2,3.01276]
[1722280846461,2.3487,3319.4,3319.0,3.01287]
[1722280846675,2.3487,3319.4,3318.9,3.01302]
[1722280846876,5.897421,3319.4,3318.7,3.01315]
[1722280847064,3.01269,3319.3,3318.7,3.01315]
[1722280847388,2.884821,3319.4,3318.7,3.07340848]
[1722280847590,2.3487,3319.4,3318.9,3.01298]
[1722280847945,2.3487,3319.4,3319.1,3.01283]
[1722280850306,2.3487,3319.4,3318.9,3.01298]
[1722280850791,2.3487,3319.4,3319.0,3.01295]
[1722280850988,6.74076867,3319.7,3319.1,2.73025404]
[1722280851189,2.478,3319.8,3319.5,3.01245]
[1722280851486,6.74076867,3320.2,3319.4,3.01255]
[1722280851689,6.74076867,3320.2,3319.2,0.06024772]
[1722280851690,2.478,3320.1,3319.8,3.0122]
[1722280852292,2.478,3320.1,3319.9,3.01212]
[1722280852495,3.0116,3320.5,3320.0,3.01204]
[1722280852496,2.3613,3320.5,3320.0,3.01204]
[1722280852646,2.3613,3320.5,3320.1,0.06023795]
[1722280852850,2.3613,3320.5,3320.0,3.01199]
[1722280854090,2.3613,3320.5,3319.5,2.67]
[1722280854091,3.01169,3320.4,3319.7,3.01225]
[1722280854973,3.01177,3320.3,3319.7,3.01225]
[1722280855363,0.0535558,3320.2,3319.7,3.01225]
[1722280855763,3.01168,3320.4,3319.7,3.01225]
[1722280855969,0.05353581,3320.1,3319.7,3.01225]
[1722280856281,3.01168,3320.4,3319.7,3.01225]
[1722280856456,4.57793417,3320.4,3319.7,3.01225]
[1722280856798,0.05357578,3320.3,3319.7,3.01225]
[1722280858772,2.3613,3319.9,3318.7,9.32140428]
[1722280859077,0.0536297,3319.8,3319.2,3.0127]
[1722280859293,0.0536297,3319.8,3319.3,3.01267]
[1722280859514,0.0536297,3319.8,3319.1,3.01277]
[1722280859676,0.0536297,3319.8,3318.8,3.0131]
[1722280859677,3.01232,3319.7,3318.9,3.01297]
[1722280860010,3.06603327,3319.6,3319.0,6.01291]
[1722280860519,2.4464,3319.3,3318.6,3.01324]
[1722280860677,2.4464,3319.3,3318.7,3.01317]
[1722280860877,0.05347779,3319.2,3318.7,3.01317]
[1722280861307,3.01294,3319.1,3318.4,3.01346]
[1722280861579,0.05343116,3319.0,3318.5,3.01334]
[1722280862114,0.05333511,3318.9,3318.5,3.01334]
[1722280862313,3.01286,3319.1,3318.5,3.01334]
[1722280862485,0.05333542,3319.0,3318.5,3.01334]
[1722280862903,0.05333542,3319.0,3318.6,3.01331]
[1722280863217,0.05333542,3319.0,3318.3,3.01358]
[1722280863218,3.01287,3319.1,3318.4,3.01345]
[1722280863524,0.05325261,3319.0,3318.5,3.0134]
[1722280863690,0.05325261,3319.0,3318.3,3.01355]
[1722280863691,3.06621261,3319.0,3318.3,3.01355]
[1722280864201,3.01305,3318.9,3318.3,3.01355]
[1722280864605,0.05325261,3319.0,3318.5,3.01332]
[1722280864815,3.01279,3319.2,3318.6,3.01331]
[1722280865118,3.01286,3319.1,3318.4,3.01343]
[1722280865316,3.06624214,3319.0,3318.3,3.01355]
[1722280865882,3.06624214,3319.0,3318.1,3.01376]
[1722280865883,3.06624214,3319.0,3318.4,3.01349]
[1722280866105,0.05328214,3319.0,3318.4,3.01349]
[1722280866427,3.01284,3319.2,3318.4,3.01349]
[1722280866619,0.05326214,3318.9,3318.4,3.01349]
[1722280866919,3.01295,3319.0,3318.4,3.01349]
[1722280867118,0.05327199,3318.9,3318.4,3.01349]
[1722280867482,0.05327199,3318.9,3318.5,3.01339]
[1722280867682,3.01278,3319.2,3318.5,3.01339]
[1722280868022,0.05330213,3319.1,3318.5,3.01339]
[1722280868822,3.06616213,3319.1,3318.3,3.01352]
[1722280869195,3.01296,3319.0,3318.3,3.01352]
[1722280869394,3.06624214,3319.0,3318.3,3.01352]
[1722280869582,0.05328214,3319.0,3318.4,3.01342]
[1722280870018,5.45911,3319.3,3318.4,3.01342]
[1722280870217,5.45911,3319.3,3318.5,3.01336]
[1722280870218,0.05326214,3318.9,3318.5,3.01336]
[1722280870431,3.01278,3319.2,3318.6,3.01324]
[1722280870625,0.05321398,3318.8,3318.6,3.01324]
[1722280870824,5.45911,3319.3,3318.7,3.01322]
[1722280871115,5.45911,3319.3,3318.6,3.0133]
[1722280871278,3.06610333,3319.2,3318.6,3.0133]
[1722280871684,0.05333333,3319.2,3318.7,3.01321]
[1722280873051,0.05333333,3319.2,3318.9,3.01298]
[1722280873450,2.4464,3319.3,3318.9,3.01298]
[1722280873650,0.05317776,3319.1,3318.9,3.01298]
[1722280873853,2.4464,3319.3,3319.0,3.01295]
[1722280874151,2.4464,3319.3,3319.1,3.01279]
[1722280874326,2.4485,3319.7,3319.1,3.01279]
[1722280874655,2.4485,3319.7,3319.2,3.01275]
[1722280874656,0.05330352,3319.6,3319.2,3.01275]
[1722280874959,0.05330352,3319.6,3319.5,3.0125]
[1722280875120,0.05330352,3319.6,3319.5,6.025]
[1722280875319,6.74076867,3320.2,3319.7,3.01225]
[1722280875557,0.05331121,3320.1,3319.8,3.01221]
[1722280875738,0.05331121,3320.1,3319.6,3.01237]
[1722280876482,0.05331121,3320.1,3319.8,3.01222]
[1722280877459,0.05331121,3320.1,3319.5,3.01246]
[1722280877753,0.05331121,3320.1,3319.7,3.01231]
[1722280879042,0.05331121,3320.1,3319.8,3.01222]
[1722280879630,0.05331121,3320.1,3319.2,3.01273]
[1722280879834,0.05331121,3320.1,3319.5,3.01246]
[1722280880156,3.01214,3319.9,3319.3,3.01267]
[1722280880365,0.05359757,3319.8,3319.1,3.01285]
[1722280880527,0.05359757,3319.8,3319.2,3.01277]
[1722280880727,3.06588757,3319.8,3319.1,3.01285]
[1722280880970,3.90451033,3319.8,3319.1,3.01285]
[1722280882664,0.89222033,3319.8,3319.4,3.01258]
[1722280882877,0.05359757,3319.8,3319.4,3.01258]
[1722280883371,5.32031,3320.0,3319.4,3.01258]
[1722280883559,0.05354954,3319.7,3319.4,3.01258]
[1722280883735,5.32031,3320.0,3319.4,3.01258]
[1722280883937,3.06573952,3319.9,3319.2,3.01271]
[1722280885450,3.06573952,3319.9,3319.1,3.01283]
[1722280885451,3.06573952,3319.9,3319.3,3.01267]
[1722280888291,3.06573952,3319.9,3319.3,6.02527]
[1722280888674,3.06573952,3319.9,3319.3,3.0126]
[1722280888894,3.99444545,3319.9,3319.3,3.0126]
[1722280890293,0.05358952,3319.9,3319.6,3.01233]
[1722280890494,0.05358952,3319.9,3319.8,3.01222]
[1722280891768,0.05358952,3319.9,3319.8,6.02444]
[1722280892159,2.4055,3320.3,3320.0,3.01204]
[1722280892359,0.05352174,3320.2,3320.0,3.01204]
[1722280892691,2.4055,3320.3,3319.8,3.01215]
[1722280892896,0.05354111,3320.1,3319.8,3.01215]
[1722280893082,0.05356567,3320.2,3319.8,3.01215]
[1722280893398,2.4055,3320.3,3319.8,3.01215]
[1722280893604,0.05354568,3320.1,3319.9,3.01208]
[1722280893785,0.05354568,3320.1,3319.8,3.01215]
[1722280893786,0.05356567,3320.2,3320.0,3.01204]
[1722280893962,2.4055,3320.3,3320.0,3.01204]
[1722280895007,2.4055,3320.3,3320.2,3.01186]
[1722280895700,9.07226867,3320.7,3320.4,3.01167]
[1722280895903,9.07226867,3320.7,3319.9,3.0121]
[1722280895904,2.3315,3321.1,3320.8,3.01124]
[1722280896224,2.3315,3321.1,3320.3,3.01177]
[1722280896358,2.3315,3321.1,3320.9,3.01117]
[1722280896806,2.3315,3321.1,3321.0,3.01114]
[1722280897007,2.3315,3321.1,3320.8,3.01126]
[1722280897364,2.3315,3321.1,3320.4,3.01162]
[1722280897365,5.57571,3321.1,3320.4,3.01162]
[1722280897705,5.57571,3321.1,3319.4,3.01255]
[1722280897706,2.56465,3321.1,3320.3,3.01177]
[1722280897913,3.01129,3320.9,3320.3,3.01177]
[1722280898117,2.3207,3321.0,3320.4,3.01167]
[1722280898400,2.877191,3321.0,3320.3,3.01174]
[1722280898593,2.3207,3321.0,3320.5,3.01159]
[1722280899626,5.33185,3321.0,3320.3,3.0117]
[1722280899764,5.33185,3321.0,3320.4,3.01167]
[1722280900499,0.04901239,3320.9,3320.4,3.01167]
[1722280901167,0.04901239,3320.9,3320.5,3.01157]
[1722280901769,0.04901239,3320.9,3320.8,3.01132]
[1722280903277,6.01062,3321.6,3320.1,5.31701]
[1722280903278,5.3413,3321.6,3320.1,5.31701]
[1722280903477,5.3413,3321.6,3319.9,2.67]
[1722280903478,2.3413,3321.6,3321.5,3.01068]
[1722280904136,2.3413,3321.6,3321.3,3.01082]
[1722280904280,2.57543,3321.6,3321.3,3.01079]
[1722280904820,2.57543,3321.6,3321.1,3.01104]
[1722280905304,2.57543,3321.6,3320.7,3.01135]
[1722280905305,2.3413,3321.6,3320.7,3.01135]
[1722280905514,2.3413,3321.6,3321.3,3.01079]
[1722280905695,2.3413,3321.6,3321.4,3.01077]
[1722280906211,2.3413,3321.6,3321.3,3.01083]
[1722280906603,2.3413,3321.6,3321.0,3.01111]
[1722280906803,2.57543,3321.6,3321.2,3.01095]
[1722280907007,2.57543,3321.6,3321.0,3.01111]
[1722280907228,3.01075,3321.5,3320.8,3.0113]
[1722280907427,2.57543,3321.6,3321.0,3.01113]
[1722280907741,2.57543,3321.6,3321.1,3.01104]
[1722280908441,2.57543,3321.6,3320.9,3.01115]
[1722280908654,0.257543,3321.5,3320.9,3.01115]
[1722280909259,3.01078,3321.4,3320.7,3.01134]
[1722280909401,2.4131,3321.3,3320.7,3.01134]
[1722280909734,2.4131,3321.3,3320.9,3.01123]
[1722280909735,2.9812423,3321.3,3320.9,3.01123]
[1722280909935,2.4131,3321.3,3321.0,3.01112]
[1722280910132,2.4131,3321.3,3321.1,3.01101]
[1722280910431,2.4131,3321.3,3321.2,3.01095]
[1722280910752,2.4131,3321.7,3321.3,3.01085]
[1722280910956,0.24131,3321.6,3321.3,3.01085]
[1722280911812,2.4993,3321.5,3320.5,2.4342]
[1722280912012,2.4993,3321.5,3320.6,3.07172123]
[1722280912232,2.4993,3321.5,3321.2,3.01093]
[1722280912535,2.4993,3321.5,3321.1,3.01099]
[1722280913035,2.4993,3321.5,3321.4,3.01077]
[1722280913332,2.4993,3321.9,3321.4,3.01074]
[1722280913538,2.4993,3321.9,3321.6,3.01053]
[1722280913733,2.4993,3321.9,3321.7,3.0105]
[1722280913939,6.74076867,3322.0,3321.2,2.67]
[1722280913940,6.74076867,3322.0,3321.9,3.01032]
[1722280914145,6.74076867,3322.0,3321.9,6.02064]
[1722280914516,3.00953,3322.8,3322.2,3.00998]
[1722280914517,0.1464331,3322.7,3322.2,3.00998]
[1722280914724,0.1464331,3322.7,3322.4,3.00986]
[1722280915117,0.1464331,3322.7,3322.2,3.00998]
[1722280915322,0.04149538,3322.6,3322.0,3.0102]
[1722280915645,3.05121538,3322.6,3321.9,3.01026]
[1722280916050,3.00993,3322.4,3321.7,3.01048]
[1722280916220,3.05121538,3322.6,3321.5,3.01062]
[1722280916221,5.37006,3322.3,3321.5,3.01062]
[1722280916421,3.01011,3322.2,3321.5,3.01062]
[1722280916622,3.01011,3322.2,3321.3,3.01083]
[1722280916623,3.01018,3322.1,3321.3,3.01083]
[1722280916846,3.01041,3321.9,3321.2,3.01088]
[1722280917146,0.04150237,3321.8,3321.1,3.01103]
[1722280917331,0.04150237,3321.8,3321.3,3.01086]
[1722280917518,3.05191237,3321.8,3321.1,3.01098]
[1722280918446,0.04150237,3321.8,3321.2,3.01089]
[1722280918832,3.01018,3322.1,3321.2,3.01089]
[1722280919032,0.04075632,3321.7,3321.2,3.01089]
[1722280919243,0.301018,3322.0,3321.2,3.01089]
[1722280919428,0.04073636,3321.6,3321.2,3.01089]
[1722280919625,0.301018,3322.0,3321.0,3.01107]
[1722280919826,0.301018,3322.0,3320.8,2.67]
[1722280919827,5.50395,3321.9,3321.2,3.01088]
[1722280920043,3.01041,3321.8,3321.2,3.01088]
[1722280920412,0.04087695,3321.7,3321.2,3.01088]
[1722280920618,3.05138695,3321.7,3321.0,3.01107]
[1722280920816,3.01095,3321.3,3320.4,3.01165]
[1722280921152,2.50400234,3321.2,3320.9,3.01116]
[1722280921450,0.04070234,3321.2,3321.0,3.01113]
[1722280921819,2.3676,3321.5,3321.1,3.01103]
[1722280922817,2.3676,3321.5,3320.9,3.01116]
[1722280923255,5.37829,3321.5,3320.7,3.01135]
[1722280923457,3.01092,3321.3,3320.1,3.0]
[1722280923622,3.01092,3321.3,3319.9,12.77963]
[1722280923623,3.01111,3321.1,3320.3,3.0117]
[1722280923823,3.01111,3321.1,3320.5,3.01157]
[1722280924434,2.2934,3320.9,3320.1,3.01192]
[1722280924632,5.30467,3320.9,3320.1,3.01192]
[1722280924860,3.01134,3320.8,3320.1,3.01192]
[1722280925158,3.01154,3320.6,3320.0,3.01203]
[1722280925456,2.2934,3320.9,3320.3,3.01177]
[1722280925654,2.2934,3320.9,3320.1,3.01192]
[1722280925841,2.2934,3320.9,3320.2,3.01185]
[1722280926043,2.2934,3320.9,3320.4,3.01167]
[1722280926545,2.2934,3320.9,3320.5,3.01159]
[1722280926746,2.2934,3320.9,3320.5,3.01151]
[1722280927132,2.2934,3320.9,3320.3,3.01171]
[1722280927853,5.835095,3320.9,3320.1,3.01193]
[1722280928156,5.30464,3320.9,3320.1,3.01193]
[1722280928460,3.01145,3320.7,3319.9,3.01211]
[1722280928625,3.01145,3320.7,3320.0,3.01204]
[1722280928825,3.01135,3320.8,3320.0,3.01197]
[1722280929063,3.842949,3320.8,3320.2,3.01186]
[1722280929281,3.01142,3320.7,3320.0,3.01197]
[1722280929585,3.01151,3320.6,3320.0,3.01197]
[1722280929877,3.842949,3320.8,3319.8,3.0122]
[1722280929878,3.01142,3320.7,3319.9,3.01212]
[1722280930080,3.01142,3320.7,3320.0,3.01198]
[1722280930378,0.03954001,3320.6,3320.0,3.01198]
[1722280930571,3.05105001,3320.6,3320.0,3.01198]
[1722280931142,3.05105001,3320.6,3319.4,3.0]
[1722280931143,3.0116,3320.5,3319.6,3.01238]
[1722280931479,3.01184,3320.3,3319.7,3.01232]
[1722280931857,0.0394601,3320.2,3319.7,3.01232]
[1722280932060,0.0394601,3320.2,3319.5,3.01244]
[1722280932297,0.0394601,3320.2,3319.3,3.01262]
[1722280932298,0.58883011,3320.2,3319.3,3.01262]
[1722280932462,3.01215,3319.9,3319.1,3.01285]
[1722280932652,3.01246,3319.6,3318.2,3.0136]
[1722280932850,3.01246,3319.6,3318.3,0.06026176]
[1722280933091,0.03914884,3319.5,3318.9,3.01297]
[1722280933244,0.03914884,3319.5,3318.9,3.01298]
[1722280933451,3.05164884,3319.5,3318.9,3.01298]
[1722280933683,0.03914884,3319.5,3319.0,3.01294]
[1722280933982,0.03914884,3319.5,3318.8,3.0733813]
[1722280933983,3.01238,3319.7,3318.8,3.0131]
[1722280934144,2.2894,3319.8,3319.4,3.01259]
[1722280934145,0.0390798,3319.6,3319.4,3.01259]
[1722280934350,0.0390798,3319.6,3318.3,2.67]
[1722280934351,12.13973867,3320.2,3319.2,0.06025135]
[1722280934589,0.03897995,3320.1,3319.5,3.0125]
[1722280935592,0.03897995,3320.1,3319.6,3.01233]
[1722280935804,0.03897995,3320.1,3319.7,3.01225]
[1722280936464,0.03897995,3320.1,3319.5,3.01249]
[1722280937086,0.03897995,3320.1,3319.6,3.0124]
[1722280938688,0.03897995,3320.1,3319.3,3.01264]
[1722280938890,3.01208,3320.0,3319.3,3.01264]
[1722280939210,0.03752522,3319.9,3319.1,3.01283]
[1722280939387,3.01237,3319.7,3318.9,6.02602]
[1722280939584,3.04987525,3319.6,3319.0,3.01295]
[1722280940095,3.04987525,3319.6,3318.4,6.01341]
[1722280940096,5.34721,3319.5,3318.8,3.01306]
[1722280940500,3.05004191,3319.4,3318.8,3.01306]
[1722280942384,0.03743191,3319.4,3318.9,3.01303]
[1722280942610,0.03743191,3319.4,3319.2,3.01271]
[1722280943019,0.03743191,3319.4,3319.3,3.01268]
[1722280943377,5.46025,3320.0,3319.3,3.01268]
[1722280943578,5.46025,3320.0,3318.8,3.01309]
[1722280943579,3.01237,3319.7,3318.8,3.0131]
[1722280943774,0.03732634,3319.6,3319.0,3.01295]
[1722280944084,2.4482,3319.4,3318.8,3.0131]
[1722280944476,0.03729244,3319.3,3318.9,3.01304]
[1722280944698,0.03729244,3319.3,3318.9,3.01299]
[1722280944924,0.03729244,3319.3,3319.0,3.01294]
[1722280945125,0.03729244,3319.3,3318.9,3.01299]
[1722280945823,0.03729244,3319.3,3319.0,3.01295]
[1722280946410,0.03729244,3319.3,3319.1,3.01286]
[1722280947122,0.03729244,3319.3,3319.2,3.01277]
[1722280947324,0.03729244,3319.3,3319.1,3.01286]
[1722280948981,0.03729244,3319.3,3319.2,3.01277]
[1722280949721,0.03729244,3319.3,3319.0,3.01289]
[1722280950228,0.03729244,3319.3,3318.4,3.0]
[1722280950452,0.03729244,3319.3,3317.9,3.01395]
[1722280950453,2.67,3319.0,3317.9,3.01395]
[1722280950577,2.67,3319.0,3317.2,3.01454]
[1722280950578,3.01319,3318.8,3317.1,2.286]
[1722280950783,3.01319,3318.8,3318.0,3.01381]
[1722280950784,3.0495654,3318.7,3318.0,3.01381]
[1722280950981,3.0495654,3318.7,3317.6,3.01421]
[1722280950982,3.01342,3318.5,3317.6,3.01421]
[1722280951314,5.42546671,3318.4,3317.7,3.01413]
[1722280952378,5.42546671,3318.4,3317.5,3.01431]
[1722280952379,3.01377,3318.1,3317.5,3.01431]
[1722280952677,3.01377,3318.1,3317.3,3.01446]
[1722280952678,0.03606853,3318.0,3317.3,3.01446]
[1722280952881,0.03606853,3318.0,3316.6,2.4456]
[1722280953103,0.03606853,3318.0,3317.4,3.01431]
[1722280953308,0.03606853,3318.0,3317.5,3.01431]
[1722280953508,3.01359,3318.3,3317.5,3.01431]
[1722280953738,0.0357803,3317.9,3317.5,3.01431]
[1722280953879,3.01369,3318.2,3317.5,3.01431]
[1722280954080,0.03576029,3317.8,3317.3,3.01449]
[1722280954281,3.01387,3318.0,3317.3,3.01449]
[1722280954550,0.03575012,3317.7,3317.3,3.01449]
[1722280954680,3.01387,3318.0,3317.3,3.01449]
[1722280954878,0.03573011,3317.6,3317.3,3.01449]
[1722280955123,3.01387,3318.0,3317.3,3.01449]
[1722280955296,0.03571009,3317.5,3317.3,3.01449]
[1722280955513,3.01387,3318.0,3317.3,3.01449]
[1722280955710,0.03566181,3317.4,3317.3,3.01449]
[1722280955911,3.01387,3318.0,3317.3,3.01449]
[1722280956124,0.03566181,3317.4,3317.3,3.01449]
[1722280956346,3.01397,3317.9,3317.2,3.01453]
[1722280956494,0.03565196,3317.4,3317.2,3.01453]
[1722280956689,3.853861,3318.3,3317.2,3.01453]
[1722280956900,0.03564671,3317.3,3317.2,3.01459]
[1722280957105,0.6229561,3318.2,3317.6,3.01422]
[1722280957346,5.38921,3318.4,3317.6,3.01416]
[1722280957541,0.03545584,3318.1,3317.6,3.01416]
[1722280957838,2.3757,3318.4,3318.0,3.01378]
[1722280958593,2.3757,3318.4,3318.1,3.01376]
[1722280958801,2.3757,3318.4,3317.9,3.01394]
[1722280958802,2.3606,3318.8,3318.2,3.01364]
[1722280959596,5.37374,3318.8,3318.0,3.01379]
[1722280959937,5.37374,3318.8,3318.1,3.01377]
[1722280959938,3.01326,3318.7,3318.1,3.01377]
[1722280960307,3.01326,3318.7,3317.9,3.01389]
[1722280960507,0.03561379,3318.6,3317.9,3.01389]
[1722280960713,0.03561379,3318.6,3318.1,3.0137]
[1722280961086,2.3606,3318.8,3318.0,0.0602721]
[1722280961290,0.03559379,3318.5,3318.2,3.01362]
[1722280961491,2.3606,3318.8,3318.2,3.01362]
[1722280961741,0.03557378,3318.4,3318.2,3.01362]
[1722280961891,2.3606,3318.8,3318.3,3.01358]
[1722280962089,2.3606,3318.8,3318.5,3.0134]
[1722280963808,2.3606,3318.8,3317.8,3.014]
[1722280963809,2.3172,3319.3,3318.6,3.01329]
[1722280964146,2.3172,3319.3,3318.4,3.01347]
[1722280964147,5.32988,3319.3,3318.4,3.01347]
[1722280964696,5.32988,3319.3,3318.6,3.01329]
[1722280965010,3.01296,3319.0,3318.4,3.01347]
[1722280965406,6.83822487,3319.3,3318.2,3.01367]
[1722280965407,3.01306,3318.9,3318.2,3.01367]
[1722280965743,3.01306,3318.9,3318.1,3.01371]
[1722280966345,3.01306,3318.9,3318.2,3.01367]
[1722280966494,3.01306,3318.9,3317.6,8.68418]
[1722280966495,2.3541,3318.7,3318.1,3.01376]
[1722280966937,2.3541,3318.7,3317.9,3.01394]
[1722280967234,5.36741,3318.7,3318.0,3.01385]
[1722280967428,5.36741,3318.7,3317.9,3.01389]
[1722280967429,3.01337,3318.6,3317.9,3.01389]
[1722280967732,3.01332,3318.6,3317.8,3.01397]
[1722280967942,3.01332,3318.6,3317.9,3.0]
[1722280968411,3.01332,3318.6,3317.9,6.01395]
[1722280968733,2.3541,3318.7,3318.0,3.01385]
[1722280969054,5.36733,3318.7,3318.0,3.01385]
[1722280969397,5.36733,3318.7,3318.1,3.01377]
[1722280969726,2.3541,3318.7,3318.2,3.01367]
[1722280969944,2.3541,3318.7,3318.3,3.01358]
[1722280970263,2.3541,3318.7,3318.2,3.01367]
[1722280970407,2.3541,3318.7,3318.0,6.02762]
[1722280970631,2.3259,3319.1,3318.1,0.06026724]
[1722280970937,2.3259,3319.1,3318.6,3.01325]
[1722280971140,2.3259,3319.1,3318.7,3.01322]
[1722280971424,2.3259,3319.1,3318.8,3.01308]
[1722280971833,6.74076867,3319.4,3319.2,3.01271]
[1722280972022,3.0121,3320.0,3319.2,3.01271]
[1722280972023,2.3561,3319.9,3319.2,3.01271]
[1722280972225,1.21089687,3319.8,3319.3,3.01262]
[1722280972546,1.21089687,3319.8,3319.4,3.01258]
[1722280973897,1.21089687,3319.8,3319.2,3.01271]
[1722280974707,1.21089687,3319.8,3319.3,3.01266]
[1722280975402,0.03202335,3319.7,3319.3,3.01266]
[1722280975604,1.21089687,3319.8,3319.3,3.01266]
[1722280975802,0.03202335,3319.7,3319.3,3.01266]
[1722280976002,5.36824,3319.9,3319.3,3.01266]
[1722280976234,0.03204334,3319.8,3319.3,3.01266]
[1722280976641,0.03204334,3319.8,3319.4,3.01256]
[1722280977549,0.03204334,3319.8,3319.2,6.02547]
[1722280977747,0.03204334,3319.8,3318.2,3.01362]
[1722280977748,2.466,3319.1,3318.0,0.62628726]
[1722280977909,2.466,3319.1,3318.5,3.01336]
[1722280978244,0.0318834,3319.0,3318.7,3.01322]
[1722280978410,0.0318834,3319.0,3318.6,3.01331]
[1722280978814,0.0318834,3319.0,3318.7,3.01321]
[1722280979502,3.0449034,3319.0,3318.3,3.01351]
[1722280980222,3.01314,3318.8,3318.1,3.01376]
[1722280980433,3.01325,3318.7,3318.1,3.01376]
[1722280980632,3.01332,3318.6,3317.9,3.01392]
[1722280981145,0.03195673,3318.5,3318.0,3.01386]
[1722280981526,0.03195673,3318.5,3317.8,3.01399]
[1722280981703,0.03195673,3318.5,3317.9,3.01394]
[1722280982532,5.26703,3318.4,3317.7,3.0141]
[1722280982864,5.26703,3318.4,3317.8,0.06027791]
[1722280982865,0.0318124,3318.3,3317.8,0.06027791]
[1722280983036,0.0318124,3318.3,3318.2,3.01368]
[1722280983239,0.0318124,3318.3,3317.9,3.01389]
[1722280983436,2.2535,3318.4,3317.9,3.01389]
[1722280983632,2.2535,3318.4,3317.7,3.01411]
[1722280983633,0.03175761,3318.2,3317.7,3.01411]
[1722280983962,0.03175761,3318.2,3317.1,5.38829]
[1722280983963,0.03177761,3318.3,3317.8,3.01404]
[1722280984161,2.2535,3318.4,3317.8,3.01404]
[1722280984162,0.03173761,3318.1,3317.8,3.01404]
[1722280984321,2.2535,3318.4,3317.8,3.01404]
[1722280984322,0.03176528,3318.2,3317.8,3.01404]
[1722280984658,2.2535,3318.4,3317.8,3.01404]
[1722280984861,0.03174413,3318.1,3317.8,3.01404]
[1722280985020,2.2535,3318.4,3317.9,3.01394]
[1722280985222,2.2535,3318.4,3318.0,3.01385]
[1722280985458,2.2535,3318.4,3317.9,3.01389]
[1722280985839,2.2535,3318.4,3317.8,3.01404]
[1722280986438,2.2535,3318.4,3317.9,3.01395]
[1722280987759,2.2535,3318.4,3318.0,3.01386]
[1722280988325,2.2535,3318.4,3318.2,3.01366]
[1722280988722,2.4743,3318.9,3318.2,3.01366]
[1722280988921,3.07813603,3318.9,3318.3,3.01358]
[1722280989363,2.4743,3318.9,3318.5,3.01338]
[1722280989796,2.4743,3318.9,3318.3,3.01358]
[1722280990366,0.0317988,3318.8,3318.3,3.01358]
[1722280992713,0.0317988,3318.8,3318.4,3.01349]
[1722280993387,0.0317988,3318.8,3318.6,3.0133]
[1722280993589,0.0317988,3318.8,3318.4,3.01349]
[1722280994182,0.0317988,3318.8,3317.5,3.0]
[1722280994378,3.01329,3318.7,3317.9,3.01392]
[1722280994799,3.01353,3318.4,3317.7,3.01405]
[1722280994998,2.3519,3318.5,3317.6,3.01418]
[1722280995297,0.03182189,3318.3,3317.7,3.01406]
[1722280995499,3.0135,3318.4,3317.7,3.01406]
[1722280995500,3.04545333,3318.4,3317.7,3.01406]
[1722280995658,0.03191333,3318.2,3317.7,3.01406]
[1722280995860,0.03193333,3318.3,3317.7,3.01406]
[1722280996069,0.03189332,3318.1,3317.7,3.01406]
[1722280996277,3.0135,3318.4,3317.7,3.01406]
[1722280996474,3.0135,3318.4,3317.5,3.01426]
[1722280996475,0.03186348,3318.0,3317.5,3.01426]
[1722280996659,3.55006,3318.4,3317.5,3.01426]
[1722280996660,3.01366,3318.3,3317.5,3.01426]
[1722280997043,5.36536,3318.5,3317.8,3.01404]
[1722280997248,0.03170166,3318.2,3317.8,3.01404]
[1722280997535,5.36536,3318.5,3317.8,3.01404]
[1722280997737,0.03172101,3318.1,3317.8,3.01404]
[1722280997900,2.3519,3318.5,3318.0,3.01381]
[1722280998109,2.3519,3318.5,3317.7,0.06027761]
[1722280998110,2.3519,3318.5,3318.2,3.01362]
[1722280998303,2.3519,3318.5,3318.2,3.01361]
[1722280998699,2.3519,3318.5,3318.0,6.02762]
[1722280998927,2.3519,3318.5,3318.0,3.01379]
[1722280999132,2.3519,3318.5,3317.8,6.02799]
[1722280999321,5.36532,3318.5,3317.9,3.01395]
[1722280999632,5.36532,3318.5,3317.6,3.0142]
[1722281000231,5.36532,3318.5,3317.8,3.01402]
[1722281000419,6.87727187,3318.5,3317.6,3.0142]
[1722281000951,6.87727187,3318.5,3317.1,3.0]
[1722281000952,2.3183,3318.1,3317.5,3.01431]
[1722281001444,2.3183,3318.1,3317.7,3.01411]
[1722281001591,2.3183,3318.1,3317.9,3.01395]
[1722281001795,2.3183,3318.1,3317.7,3.01407]